lending/lending_fUSD_20241005
["ID","MTS","AMOUNT","RATE_DAILY","PERIOD"]
[339869855,1728096640558,-500.56073757,0.00037416,30]
[339869856,1728096640567,-500.0,0.00037416,30]
[339869857,1728096640577,-501.10839209,0.00037416,30]
[339869858,1728096640586,-531.7793894,0.00037416,30]
[339869859,1728096640595,-502.69851425,0.00037416,30]
[339869860,1728096640604,-504.7790805,0.00037416,30]
[339869861,1728096640615,-500.78290601,0.00037416,30]
[339869862,1728096640624,-503.7986068,0.00037416,30]
[339869863,1728096640633,-504.03929666,0.00037416,30]
[339869864,1728096640642,-511.26930561,0.00037416,30]
[339869865,1728096640651,-502.31824879,0.00037416,30]
[339869866,1728096640661,-500.81576615,0.00037416,30]
[339869867,1728096640670,-502.24294578,0.00037416,30]
[339869868,1728096640679,-502.41183933,0.00037416,30]
[339869869,1728096640689,-502.1389838,0.00037416,30]
[339869870,1728096640698,-500.0,0.00037416,30]
[339869871,1728096640707,-500.0,0.00037416,24]
[339869872,1728096640717,-502.27992184,0.00037416,30]
[339869873,1728096640727,-500.0,0.00037416,30]
[339869874,1728096640736,-504.70950494,0.00037416,30]
[339869875,1728096640747,-500.0,0.00037416,30]
[339869876,1728096640756,-500.0,0.00037416,30]
[339869877,1728096640766,-500.0,0.00037416,30]
[339869878,1728096640776,-500.0,0.00037416,30]
[339869879,1728096640785,-500.0,0.00037416,30]
[339869880,1728096640794,-500.0,0.00037416,30]
[339869881,1728096640803,-501.3924354,0.00037416,30]
[339869882,1728096640812,-500.0,0.00037416,30]
[339869883,1728096640821,-501.16299766,0.00037416,30]
[339869884,1728096640830,-501.51711242,0.00037416,30]
[339869885,1728096640840,-501.81252307,0.00037416,30]
[339869886,1728096640849,-500.0,0.00037416,30]
[339869887,1728096640858,-500.24285403,0.00037416,30]
[339869888,1728096640868,-502.62073157,0.00037416,30]
[339869889,1728096640877,-159.26246563,0.00037416,30]
[339869890,1728096640886,-502.30600136,0.00037416,30]
[339869891,1728096640897,-501.17649686,0.00037416,30]
[339869892,1728096640907,-502.18457889,0.00037416,30]
[339869893,1728096640917,-515.71539567,0.00037416,30]
[339869894,1728096640928,-501.21409763,0.00037416,30]
[339869895,1728096640938,-502.79583291,0.00037416,30]
[339869896,1728096640947,-501.11176239,0.00037416,30]
[339869897,1728096640956,-501.21129122,0.00037416,30]
[339869898,1728096640966,-1000.0,0.00037416,30]
[339869899,1728096640975,-501.50998665,0.00037416,30]
[339869900,1728096640984,-649.6570285,0.00037416,30]
[339869901,1728096640993,-168.03413126,0.00037416,30]
[339869902,1728096641002,-500.0,0.00037416,30]
[339869903,1728096641012,-500.72122885,0.00037416,30]
[339869904,1728096641022,-500.0,0.00037416,30]
[339869905,1728096641032,-501.64821369,0.00037416,30]
[339869906,1728096641043,-500.0,0.00037416,30]
[339869907,1728096641056,-529.6779477,0.00037416,30]
[339869908,1728096641066,-500.9348945,0.00037416,30]
[339869909,1728096641075,-500.0,0.00037416,30]
[339869910,1728096641084,-500.0,0.00037416,30]
[339869911,1728096641096,-500.0,0.00037416,30]
[339869912,1728096641105,-627.76695238,0.00037416,30]
[339869913,1728096641115,-501.51330283,0.00037416,30]
[339869914,1728096641124,-500.0,0.00037416,30]
[339869915,1728096641135,-627.46,0.00037416,30]
[339869916,1728096641144,-500.0,0.00037416,30]
[339869917,1728096641153,-500.0,0.00037416,30]
[339869918,1728096641162,-500.0,0.00037416,30]
[339869919,1728096641171,-501.35821715,0.00037416,30]
[339869920,1728096641180,-627.24,0.00037416,30]
[339869921,1728096641189,-521.55455157,0.00037416,30]
[339869922,1728096641197,-500.0,0.00037416,30]
[339869923,1728096641206,-500.0,0.00037416,30]
[339869924,1728096641215,-500.0,0.00037416,30]
[339869925,1728096641224,-500.0,0.00037416,30]
[339869926,1728096641233,-500.0,0.00037416,30]
[339869927,1728096641241,-263.02366734,0.00037416,30]
[339869928,1728096641250,-500.0,0.00037416,30]
[339869929,1728096641259,-500.0,0.00037416,30]
[339869930,1728096641268,-500.0,0.00037416,30]
[339869931,1728096641277,-500.0,0.00037416,30]
[339869932,1728096641286,-500.0,0.00037416,30]
[339869933,1728096641295,-500.0,0.00037416,30]
[339869934,1728096641304,-1273.88,0.00037416,30]
[339869935,1728096641313,-500.0,0.00037416,30]
[339869936,1728096641322,-500.0,0.00037416,30]
[339869937,1728096641331,-648.03,0.00037416,30]
[339869938,1728096641340,-500.0,0.00037416,30]
[339869939,1728096641350,-500.0,0.00037416,30]
[339869940,1728096641359,-613.61,0.00037416,30]
[339869941,1728096641368,-500.0,0.00037416,30]
[339869942,1728096641378,-500.0,0.00037416,30]
[339869943,1728096641387,-500.0,0.00037416,30]
[339869944,1728096641397,-500.0,0.00037416,30]
[339869945,1728096641406,-500.0,0.00037416,21]
[339869946,1728096641415,-500.0,0.00037416,30]
[339869947,1728096641424,-500.0,0.00037416,30]
[339869948,1728096641433,-500.0,0.00037416,30]
[339869949,1728096641443,-500.0,0.00037416,30]
[339869950,1728096641451,-500.0,0.00037416,30]
[339869951,1728096641461,-500.0,0.00037416,30]
[339869952,1728096641470,-500.0,0.00037416,30]
[339869953,1728096641479,-284.42681578,0.00037416,30]
[339869954,1728096641490,-500.0,0.00037416,30]
[339869955,1728096641499,-500.0,0.00037416,30]
[339869956,1728096641509,-606.51484446,0.00037416,30]
[339869957,1728096641518,-183.31669066,0.00037416,30]
[339869958,1728096641527,-500.0,0.00037416,30]
[339869959,1728096641537,-647.63447696,0.00037416,30]
[339869960,1728096641546,-500.0,0.00037416,30]
[339869961,1728096641555,-500.0,0.00037416,30]
[339869962,1728096641564,-500.0,0.00037416,30]
[339869963,1728096641573,-500.0,0.00037416,30]
[339869964,1728096641583,-500.7368993,0.00037416,30]
[339869965,1728096641592,-500.0,0.00037416,30]
[339869966,1728096641601,-500.0,0.00037416,30]
[339869967,1728096641611,-208.72349303,0.00037416,30]
[339869968,1728096641624,-500.0,0.00037416,30]
[339869969,1728096641642,-500.0,0.00037416,30]
[339869970,1728096641651,-500.0,0.00037416,30]
[339869971,1728096641659,-500.0,0.00037416,30]
[339869972,1728096641668,-500.0,0.00037416,30]
[339869973,1728096641677,-500.0,0.00037416,30]
[339869974,1728096641688,-500.0,0.00037416,30]
[339869975,1728096641698,-500.0,0.00037416,30]
[339869976,1728096641707,-500.0,0.00037416,30]
[339869977,1728096641716,-500.0,0.00037416,30]
[339869978,1728096641726,-500.0,0.00037416,30]
[339869979,1728096641735,-500.0,0.00037416,30]
[339869980,1728096641744,-500.0,0.00037416,30]
[339869981,1728096641753,-500.0,0.00037416,30]
[339869982,1728096641763,-500.0,0.00037416,30]
[339869983,1728096641772,-500.0,0.00037416,30]
[339869984,1728096641781,-500.0,0.00037416,30]
[339869985,1728096641790,-500.0,0.00037416,30]
[339869986,1728096641799,-500.0,0.00037416,30]
[339869987,1728096641808,-500.0,0.00037416,30]
[339869988,1728096641817,-534.92563719,0.00037416,30]
[339869989,1728096641826,-500.0,0.00037416,30]
[339869990,1728096641835,-500.0,0.00037416,30]
[339869991,1728096641845,-540.39403996,0.00037416,30]
[339869992,1728096641855,-500.0,0.00037416,30]
[339869993,1728096641867,-500.0,0.00037416,30]
[339869994,1728096641876,-500.0,0.00037416,30]
[339869995,1728096641885,-500.0,0.00037416,30]
[339869996,1728096641894,-500.0,0.00037416,30]
[339869997,1728096641903,-933.86,0.00037416,30]
[339869998,1728096641912,-500.0,0.00037416,30]
[339869999,1728096641921,-500.0,0.00037416,30]
[339870000,1728096641930,-500.0,0.00037416,2]
[339870001,1728096641940,-500.0,0.00037416,30]
[339870002,1728096641953,-500.0,0.00037416,30]
[339870003,1728096641962,-500.0,0.00037416,30]
[339870004,1728096641972,-500.0,0.00037416,30]
[339870005,1728096641983,-500.0,0.00037416,30]
[339870006,1728096641994,-500.0,0.00037416,30]
[339870007,1728096642005,-437.49867385,0.00037417,30]
[339870008,1728096642014,-158.14241333,0.00037417,30]
[339870009,1728096642024,-500.0,0.00037417,30]
[339870010,1728096642034,-500.0,0.00037417,30]
[339870011,1728096642043,-500.0,0.00037417,30]
[339870012,1728096642054,-500.0,0.00037417,30]
[339870013,1728096642063,-500.0,0.00037417,30]
[339870014,1728096642072,-500.0,0.00037417,30]
[339870015,1728096642081,-500.0,0.00037417,30]
[339870016,1728096642090,-500.0,0.00037417,30]
[339870017,1728096642099,-500.0,0.00037417,30]
[339870018,1728096642109,-500.0,0.00037417,30]
[339870019,1728096642120,-500.0,0.00037417,30]
[339870020,1728096642129,-587.63,0.00037417,30]
[339870021,1728096642138,-808.03,0.00037417,30]
[339870022,1728096642147,-500.0,0.00037417,30]
[339870023,1728096642157,-623.29,0.00037417,30]
[339870024,1728096642166,-500.0,0.00037417,30]
[339870025,1728096642175,-500.0,0.00037417,30]
[339870026,1728096642185,-500.0,0.00037417,30]
[339870027,1728096642194,-500.0,0.00037417,30]
[339870028,1728096642206,-961.62,0.00037417,30]
[339870029,1728096642217,-500.0,0.00037417,30]
[339870030,1728096642227,-500.0,0.00037417,30]
[339870031,1728096642235,-500.0,0.00037417,30]
[339870032,1728096642245,-500.0,0.00037417,30]
[339870033,1728096642256,-500.0,0.00037417,30]
[339870034,1728096642265,-500.0,0.00037417,30]
[339870035,1728096642276,-500.0,0.00037417,30]
[339870036,1728096642287,-500.0,0.00037417,30]
[339870037,1728096642296,-500.0,0.00037417,30]
[339870038,1728096642305,-898.86,0.00037417,30]
[339870039,1728096642314,-500.0,0.00037417,30]
[339870040,1728096642323,-561.07,0.00037417,30]
[339870041,1728096642332,-500.0,0.00037417,30]
[339870042,1728096642341,-647.57,0.00037417,30]
[339870043,1728096642350,-500.0,0.00037417,30]
[339870044,1728096642360,-679.43,0.00037417,30]
[339870045,1728096642370,-220.5,0.00037417,30]
[339870046,1728096642380,-500.0,0.00037417,30]
[339870047,1728096642389,-500.0,0.00037417,30]
[339870048,1728096642399,-500.0,0.00037417,30]
[339870049,1728096642408,-500.0,0.00037417,30]
[339870050,1728096642417,-500.0,0.00037417,30]
[339870051,1728096642426,-500.0,0.00037417,30]
[339870052,1728096642435,-500.0,0.00037417,30]
[339870053,1728096642444,-500.0,0.00037417,30]
[339870054,1728096642453,-524.52,0.00037417,30]
[339870055,1728096642462,-500.0,0.00037417,30]
[339870056,1728096642471,-500.0,0.00037417,30]
[339870057,1728096642480,-500.0,0.00037417,30]
[339870058,1728096642489,-500.0,0.00037417,30]
[339870059,1728096642499,-625.97,0.00037417,30]
[339870061,1728096642508,-500.0,0.00037417,30]
[339870062,1728096642517,-500.0,0.00037417,30]
[339870063,1728096642526,-500.0,0.00037417,30]
[339870064,1728096642535,-500.0,0.00037417,30]
[339870065,1728096642545,-500.0,0.00037417,30]
[339870066,1728096642554,-541.71,0.00037417,30]
[339870067,1728096642563,-500.0,0.00037417,30]
[339870068,1728096642573,-500.0,0.00037417,30]
[339870069,1728096642582,-586.97,0.00037417,30]
[339870070,1728096642592,-500.0,0.00037417,30]
[339870071,1728096642601,-826.94,0.00037417,30]
[339870072,1728096642610,-500.0,0.00037417,30]
[339870073,1728096642619,-595.32,0.00037417,30]
[339870074,1728096642630,-500.0,0.00037417,2]
[339870075,1728096642639,-500.0,0.00037417,30]
[339870077,1728096642649,-500.0,0.00037417,30]
[339870079,1728096642658,-723.7,0.00037417,30]
[339870080,1728096642667,-507.47304603,0.00037417,30]
[339870081,1728096642677,-500.0,0.00037417,30]
[339870082,1728096642687,-745.84,0.00037417,30]
[339870083,1728096642696,-500.0,0.00037417,30]
[339870084,1728096642706,-500.0,0.00037417,30]
[339870085,1728096642715,-500.0,0.00037417,30]
[339870086,1728096642725,-500.0,0.00037417,30]
[339870087,1728096642734,-500.0,0.00037417,30]
[339870088,1728096642744,-500.0,0.00037417,30]
[339870089,1728096642754,-500.0,0.00037417,30]
[339870090,1728096642763,-500.0,0.00037417,30]
[339870091,1728096642772,-500.0,0.00037417,30]
[339870092,1728096642781,-500.0,0.00037417,30]
[339870093,1728096642790,-500.0,0.00037417,30]
[339870094,1728096642800,-500.0,0.00037417,30]
[339870095,1728096642809,-500.0,0.00037417,30]
[339870096,1728096642818,-500.0,0.00037417,30]
[339870097,1728096642827,-500.0,0.00037435,30]
[339870098,1728096642837,-505.8,0.00037435,30]
[339870099,1728096642846,-500.0,0.00037444,30]
[339870100,1728096642856,-500.0,0.00037444,30]
[339870101,1728096642867,-500.0,0.00037444,30]
[339870102,1728096642876,-511.69,0.00037444,30]
[339870103,1728096642886,-247.79178485,0.00037473,2]
[339870104,1728096642896,-500.0,0.00037473,2]
[339870105,1728096642905,-500.0,0.00037473,5]
[339870106,1728096642915,-500.0,0.00037473,5]
[339870107,1728096642925,-500.0,0.00037473,5]
[339870108,1728096642934,-3000.0,0.00037534,44]
[339870109,1728096642944,-500.0,0.00037553,30]
[339870110,1728096642953,-500.0,0.00037553,30]
[339870111,1728096642962,-509.02455426,0.00037553,30]
[339870112,1728096642971,-542.3168438,0.00037553,30]
[339870113,1728096643096,-500.0,0.00037553,30]
[339870114,1728096643108,-323.51437811,0.00037553,30]
[339870115,1728096643118,-495.12848946,0.00037553,30]
[339870116,1728096643129,-581.61677827,0.00037553,30]
[339870117,1728096643139,-455.88697637,0.00037553,30]
[339870118,1728096643149,-500.0,0.00037553,30]
[339870119,1728096643158,-404.51269091,0.00037553,30]
[339870120,1728096643168,-647.02769539,0.00037553,30]
[339870121,1728096643178,-338.38641654,0.00037553,30]
[339870123,1728096643188,-393.65704208,0.00037553,30]
[339870125,1728096643197,-490.34,0.00037553,30]
[339870127,1728096643207,-266.35717071,0.00037553,30]
[339870128,1728096643218,-499.8962,0.0003769,30]
[339870129,1728096643227,-613.92403168,0.0003769,30]
[339870130,1728096643236,-175.76083094,0.0003769,30]
[339870131,1728096643246,-343.51145098,0.0003769,30]
[339870132,1728096643256,-500.0,0.0003769,30]
[339870133,1728096643265,-500.0,0.0003769,30]
[339870134,1728096643275,-500.0,0.0003769,30]
[339870135,1728096643284,-282.48,0.0003769,24]
[339870136,1728096643293,-500.0,0.0003769,30]
[339870137,1728096643303,-500.0,0.0003769,30]
[339870138,1728096643313,-500.0,0.0003769,30]
[339870139,1728096643322,-500.0,0.0003769,30]
[339870140,1728096643332,-500.0,0.0003769,30]
[339870141,1728096643342,-1000.0,0.0003769,30]
[339870142,1728096643351,-500.0,0.0003769,30]
[339870143,1728096643361,-560.34,0.0003769,30]
[339870144,1728096643370,-370.42912702,0.0003769,30]
[339870145,1728096643380,-500.0,0.0003769,30]
[339870146,1728096643390,-500.0,0.0003769,30]
[339870147,1728096643399,-524.9347494,0.0003769,30]
[339870148,1728096643410,-627.24,0.0003769,30]
[339870149,1728096643419,-500.0,0.0003769,30]
[339870150,1728096643429,-302.3436285,0.0003769,30]
[339870151,1728096643438,-500.0,0.0003769,30]
[339870152,1728096643448,-495.09,0.0003769,30]
[339870153,1728096643458,-500.0,0.0003769,30]
[339870154,1728096643467,-500.0,0.0003769,30]
[339870155,1728096643477,-500.0,0.0003769,30]
[339870156,1728096643487,-1273.88,0.0003769,30]
[339870157,1728096643496,-500.0,0.0003769,30]
[339870158,1728096643506,-500.0,0.0003769,30]
[339870159,1728096643515,-211.23980464,0.0003769,30]
[339870160,1728096643525,-500.0,0.0003769,30]
[339870161,1728096643535,-500.0,0.0003769,30]
[339870162,1728096643544,-500.0,0.0003769,21]
[339870163,1728096643554,-500.0,0.0003769,30]
[339870164,1728096643564,-500.0,0.0003769,30]
[339870165,1728096643573,-500.0,0.0003769,30]
[339870166,1728096643582,-500.0,0.0003769,30]
[339870167,1728096643592,-500.0,0.0003769,30]
[339870168,1728096643601,-500.0,0.0003769,30]
[339870169,1728096643611,-427.145646,0.0003769,30]
[339870170,1728096643621,-360.68849758,0.0003769,30]
[339870171,1728096643631,-500.0,0.0003769,30]
[339870172,1728096643640,-500.0,0.0003769,30]
[339870173,1728096643650,-500.0,0.0003769,30]
[339870174,1728096643660,-500.0,0.0003769,30]
[339870175,1728096643669,-500.0,0.0003769,30]
[339870176,1728096643679,-500.0,0.0003769,30]
[339870177,1728096643689,-500.0,0.0003769,30]
[339870178,1728096643698,-500.0,0.0003769,30]
[339870179,1728096643708,-500.0,0.0003769,30]
[339870180,1728096643717,-500.0,0.0003769,30]
[339870181,1728096643727,-614.07,0.0003769,30]
[339870182,1728096643737,-500.0,0.0003769,30]
[339870183,1728096643747,-500.0,0.0003769,30]
[339870184,1728096643757,-500.0,0.0003769,30]
[339870185,1728096643766,-596.86,0.0003769,30]
[339870186,1728096643775,-392.58,0.0003769,30]
[339870187,1728096643784,-500.0,0.0003769,30]
[339870188,1728096643793,-500.0,0.0003769,30]
[339870189,1728096643802,-569.69,0.0003769,30]
[339870190,1728096643812,-500.0,0.0003769,30]
[339870191,1728096643821,-500.0,0.0003769,30]
[339870192,1728096643830,-500.0,0.0003769,30]
[339870193,1728096643839,-489.54092523,0.0003769,30]
[339870194,1728096643848,-582.67,0.0003769,30]
[339870195,1728096643857,-500.0,0.0003769,30]
[339870196,1728096643867,-500.0,0.0003769,30]
[339870197,1728096643876,-500.0,0.0003769,30]
[339870198,1728096643886,-500.0,0.0003769,30]
[339870199,1728096643896,-204.18887769,0.0003769,30]
[339870200,1728096643905,-500.0,0.0003769,30]
[339870201,1728096643915,-933.86,0.0003769,30]
[339870202,1728096643924,-500.0,0.0003769,30]
[339870203,1728096643934,-500.0,0.0003769,30]
[339870204,1728096643944,-500.0,0.0003769,2]
[339870205,1728096643954,-500.0,0.0003769,30]
[339870206,1728096643963,-500.0,0.0003769,30]
[339870207,1728096643972,-500.0,0.0003769,30]
[339870208,1728096643981,-500.0,0.0003769,30]
[339870209,1728096643991,-500.0,0.0003769,30]
[339870210,1728096644000,-500.0,0.0003769,30]
[339870211,1728096644010,-500.0,0.00037691,30]
[339870212,1728096644019,-500.0,0.00037691,30]
[339870213,1728096644028,-500.0,0.00037691,30]
[339870214,1728096644037,-500.0,0.00037691,30]
[339870215,1728096644047,-500.0,0.00037691,30]
[339870216,1728096644056,-500.0,0.00037691,30]
[339870217,1728096644065,-500.0,0.00037691,30]
[339870218,1728096644074,-500.0,0.00037691,30]
[339870219,1728096644083,-500.0,0.00037691,30]
[339870220,1728096644092,-500.0,0.00037691,30]
[339870221,1728096644101,-500.0,0.00037691,30]
[339870222,1728096644111,-587.63,0.00037691,30]
[339870223,1728096644120,-808.03,0.00037691,30]
[339870224,1728096644129,-500.0,0.00037691,30]
[339870225,1728096644138,-623.29,0.00037691,30]
[339870226,1728096644148,-500.0,0.00037691,30]
[339870227,1728096644157,-500.0,0.00037691,30]
[339870228,1728096644166,-500.0,0.00037691,30]
[339870229,1728096644176,-500.0,0.00037691,30]
[339870230,1728096644185,-961.62,0.00037691,30]
[339870231,1728096644194,-500.0,0.00037691,30]
[339870232,1728096644204,-500.0,0.00037691,30]
[339870233,1728096644213,-500.0,0.00037691,30]
[339870234,1728096644222,-500.0,0.00037691,30]
[339870235,1728096644231,-500.0,0.00037691,30]
[339870236,1728096644241,-500.0,0.00037691,30]
[339870237,1728096644250,-500.0,0.00037691,30]
[339870238,1728096644259,-500.0,0.00037691,30]
[339870239,1728096644269,-500.0,0.00037691,30]
[339870240,1728096644277,-898.86,0.00037691,30]
[339870241,1728096644287,-500.0,0.00037691,30]
[339870242,1728096644296,-561.07,0.00037691,30]
[339870243,1728096644306,-500.0,0.00037691,30]
[339870244,1728096644315,-647.57,0.00037691,30]
[339870245,1728096644324,-500.0,0.00037691,30]
[339870246,1728096644334,-679.43,0.00037691,30]
[339870247,1728096644343,-500.0,0.00037691,30]
[339870248,1728096644352,-500.0,0.00037691,30]
[339870249,1728096644361,-500.0,0.00037691,30]
[339870250,1728096644371,-500.0,0.00037691,30]
[339870251,1728096644380,-500.0,0.00037691,30]
[339870252,1728096644390,-500.0,0.00037691,30]
[339870253,1728096644400,-500.0,0.00037691,30]
[339870254,1728096644409,-500.0,0.00037691,30]
[339870255,1728096644418,-524.52,0.00037691,30]
[339870256,1728096644427,-500.0,0.00037691,30]
[339870257,1728096644437,-500.0,0.00037691,30]
[339870258,1728096644446,-500.0,0.00037691,30]
[339870259,1728096644455,-500.0,0.00037691,30]
[339870260,1728096644464,-625.97,0.00037691,30]
[339870261,1728096644474,-500.0,0.00037691,30]
[339870262,1728096644483,-500.0,0.00037691,30]
[339870263,1728096644493,-500.0,0.00037691,30]
[339870264,1728096644503,-500.0,0.00037691,30]
[339870265,1728096644512,-500.0,0.00037691,30]
[339870266,1728096644521,-541.71,0.00037691,30]
[339870267,1728096644530,-500.0,0.00037691,30]
[339870268,1728096644539,-500.0,0.00037691,30]
[339870269,1728096644549,-586.97,0.00037691,30]
[339870270,1728096644559,-500.0,0.00037691,30]
[339870271,1728096644568,-826.94,0.00037691,30]
[339870272,1728096644580,-500.0,0.00037691,30]
[339870273,1728096644592,-595.32,0.00037691,30]
[339870274,1728096644605,-500.0,0.00037691,2]
[339870275,1728096644618,-500.0,0.00037691,30]
[339870276,1728096644632,-500.0,0.00037691,30]
[339870277,1728096644651,-723.7,0.00037691,30]
[339870278,1728096644661,-500.0,0.00037691,30]
[339870279,1728096644671,-745.84,0.00037691,30]
[339870280,1728096644684,-500.0,0.00037691,30]
[339870281,1728096644695,-500.0,0.00037691,30]
[339870282,1728096644707,-500.0,0.00037691,30]
[339870283,1728096644719,-500.0,0.00037691,30]
[339870284,1728096644731,-500.0,0.00037691,30]
[339870285,1728096644743,-500.0,0.00037691,30]
[339870286,1728096644754,-500.0,0.00037691,30]
[339870287,1728096644766,-500.0,0.00037691,30]
[339870288,1728096644778,-500.0,0.00037691,30]
[339870289,1728096644790,-500.0,0.00037691,30]
[339870290,1728096644802,-500.0,0.00037691,30]
[339870291,1728096644814,-500.0,0.00037691,30]
[339870292,1728096644824,-500.0,0.00037691,30]
[339870293,1728096644836,-500.0,0.00037691,30]
[339870294,1728096644847,-500.0,0.00037709,30]
[339870295,1728096644858,-505.8,0.00037709,30]
[339870296,1728096644869,-500.0,0.00037718,30]
[339870297,1728096644881,-500.0,0.00037718,30]
[339870298,1728096644892,-500.0,0.00037718,30]
[339870299,1728096644903,-500.0,0.00037718,30]
[339870300,1728096644914,-500.0,0.00037718,30]
[339870301,1728096644925,-511.69,0.00037718,30]
[339870302,1728096644935,-500.0,0.00037719,30]
[339870303,1728096644945,-500.91304387,0.00037719,30]
[339870304,1728096644955,-220.25,0.00037731,2]
[339870305,1728096644966,-845.59231345,0.00037808,45]
[339870306,1728096644976,-500.0,0.00037827,30]
[339870307,1728096644988,-457.23001124,0.00037827,30]
[339870308,1728096644999,-500.0,0.00037827,30]
[339870309,1728096645009,-417.45250443,0.00037827,30]
[339870310,1728096645021,-1135.44118395,0.00037841,5]
[339870311,1728096645031,-202.0,0.000379,30]
[339870312,1728096645042,-215.0,0.000379,30]
[339870313,1728096645057,-205.0,0.000379,30]
[339870314,1728096645069,-500.0,0.00037964,30]
[339870315,1728096645081,-500.0,0.00037964,30]
[339870316,1728096645093,-200.15220006,0.00037964,30]
[339870317,1728096645103,-500.0,0.00037964,30]
[339870318,1728096645113,-268.7382507,0.00037964,30]
[339870319,1728096645124,-500.0,0.00037964,30]
[339870320,1728096645134,-568.71913356,0.00037964,30]
[339870321,1728096645144,-500.0,0.00037964,30]
[339870322,1728096645154,-1000.0,0.00037964,30]
[339870323,1728096645166,-500.0,0.00037964,30]
[339870324,1728096645178,-500.0,0.00037964,30]
[339870325,1728096645190,-500.0,0.00037964,30]
[339870326,1728096645200,-627.24,0.00037964,30]
[339870327,1728096645210,-185.50102027,0.00037964,30]
[339870328,1728096645220,-500.0,0.00037964,30]
[339870329,1728096645232,-500.0,0.00037964,30]
[339870330,1728096645242,-254.65,0.00037964,30]
[339870331,1728096645253,-500.0,0.00037964,30]
[339870332,1728096645264,-1273.88,0.00037964,30]
[339870333,1728096645275,-500.0,0.00037964,30]
[339870335,1728096645284,-500.0,0.00037964,30]
[339870336,1728096645294,-500.0,0.00037964,30]
[339870337,1728096645304,-500.0,0.00037964,30]
[339870338,1728096645314,-500.0,0.00037964,21]
[339870339,1728096645325,-500.0,0.00037964,30]
[339870340,1728096645335,-500.0,0.00037964,30]
[339870341,1728096645346,-301.28,0.00037964,30]
[339870342,1728096645356,-230.48,0.00037964,30]
[339870343,1728096645366,-500.0,0.00037964,30]
[339870344,1728096645379,-500.0,0.00037964,30]
[339870345,1728096645390,-301.73,0.00037964,30]
[339870346,1728096645400,-500.0,0.00037964,30]
[339870347,1728096645410,-500.0,0.00037964,30]
[339870348,1728096645420,-500.0,0.00037964,30]
[339870349,1728096645430,-287.67770997,0.00037964,30]
[339870350,1728096645441,-500.0,0.00037964,30]
[339870351,1728096645451,-500.0,0.00037964,30]
[339870352,1728096645461,-386.48283288,0.00037964,30]
[339870353,1728096645472,-500.0,0.00037964,30]
[339870354,1728096645483,-500.0,0.00037964,30]
[339870355,1728096645493,-500.0,0.00037964,30]
[339870356,1728096645504,-549.97,0.00037964,30]
[339870357,1728096645515,-389.05,0.00037964,30]
[339870358,1728096645525,-500.0,0.00037964,30]
[339870359,1728096645536,-500.0,0.00037964,30]
[339870360,1728096645546,-500.0,0.00037964,30]
[339870361,1728096645557,-500.0,0.00037964,30]